bitfinex/quotes_BTCUSD_20240729
["timestamp","ask_amount","ask_price","bid_price","bid_amount"]
[1722211200257,0.21834723,68417.0,68416.0,0.004924]
[1722211200451,0.35820731,68417.0,68416.0,0.004924]
[1722211201383,0.27420731,68417.0,68416.0,0.004924]
[1722211201641,0.35820731,68417.0,68416.0,0.004924]
[1722211202493,0.50572072,68417.0,68416.0,0.004924]
[1722211202913,0.65572072,68417.0,68416.0,0.004924]
[1722211203113,0.57516973,68417.0,68416.0,0.004924]
[1722211203458,0.65572072,68417.0,68416.0,0.004924]
[1722211203639,0.32420731,68417.0,68416.0,0.004924]
[1722211203976,0.42420731,68417.0,68416.0,0.004924]
[1722211204475,0.42420731,68417.0,68416.0,0.001924]
[1722211204678,0.42520731,68417.0,68416.0,0.000924]
[1722211204891,0.43020731,68417.0,68416.0,0.001924]
[1722211205297,0.42520731,68417.0,68416.0,0.000924]
[1722211206126,0.26270731,68417.0,68416.0,0.000924]
[1722211206330,0.35270731,68417.0,68416.0,0.001924]
[1722211206566,0.27700731,68417.0,68416.0,0.001924]
[1722211206964,0.19300731,68417.0,68416.0,0.001924]
[1722211207711,0.19200731,68417.0,68416.0,0.001924]
[1722211207847,0.18700731,68417.0,68416.0,0.000924]
[1722211208048,0.18700731,68417.0,68416.0,0.001924]
[1722211208049,0.19300731,68417.0,68416.0,0.001924]
[1722211208413,0.115608,68417.0,68416.0,0.001924]
[1722211208613,0.3356343,68417.0,68416.0,0.000924]
[1722211208915,0.3416343,68417.0,68416.0,0.001924]
[1722211209462,0.18799611,68417.0,68416.0,0.000924]
[1722211209964,0.07938811,68417.0,68416.0,0.148724]
[1722211210164,0.21063979,68417.0,68416.0,0.148724]
[1722211210510,0.07938811,68417.0,68416.0,0.148724]
[1722211210715,0.20863979,68417.0,68416.0,0.148724]
[1722211210869,0.20863979,68417.0,68416.0,0.000924]
[1722211211049,0.08138811,68417.0,68416.0,0.000924]
[1722211211251,0.21008811,68417.0,68416.0,0.000924]
[1722211211498,0.20608811,68417.0,68416.0,0.002924]
[1722211211697,0.20598651,68417.0,68416.0,0.002924]
[1722211211853,0.20698651,68417.0,68416.0,0.000924]
[1722211212055,0.20698962,68417.0,68416.0,0.004924]
[1722211212259,0.27356534,68417.0,68416.0,0.004924]
[1722211212578,0.35373217,68417.0,68416.0,0.000924]
[1722211212776,0.35373217,68417.0,68416.0,0.001924]
[1722211213323,0.45373217,68417.0,68416.0,0.001924]
[1722211213618,0.30598962,68417.0,68416.0,0.001924]
[1722211214076,0.30598962,68417.0,68416.0,0.000924]
[1722211214275,0.30577033,68417.0,68416.0,0.004924]
[1722211214475,0.30577033,68417.0,68416.0,0.008924]
[1722211214683,0.30577033,68417.0,68416.0,0.004924]
[1722211215101,0.20571008,68417.0,68416.0,0.012924]
[1722211215279,0.28971008,68417.0,68416.0,0.012924]
[1722211216817,0.38971008,68417.0,68416.0,0.012924]
[1722211217023,0.38971008,68417.0,68416.0,0.008924]
[1722211217024,0.28971008,68417.0,68416.0,0.008924]
[1722211217419,0.29071008,68417.0,68416.0,0.014924]
[1722211217998,0.29071008,68417.0,68416.0,0.006924]
[1722211218199,0.29069779,68417.0,68416.0,0.006924]
[1722211219166,0.29069779,68417.0,68416.0,0.015924]
[1722211219501,0.07799779,68417.0,68416.0,0.015924]
[1722211219828,0.07799779,68417.0,68416.0,0.161524]
[1722211220227,0.07799779,68417.0,68416.0,0.17101832]
[1722211221111,0.0743437,68417.0,68416.0,0.18821255]
[1722211221320,0.059445,68419.0,68416.0,0.18821255]
[1722211221541,0.02145882,68418.0,68416.0,0.18821255]
[1722211221752,0.00084,68419.0,68416.0,0.18821255]
[1722211221967,0.02126143,68418.0,68417.0,0.02731366]
[1722211222118,0.02126143,68418.0,68417.0,0.03680603]
[1722211222323,0.02126143,68418.0,68417.0,0.18050603]
[1722211224164,0.02126143,68418.0,68417.0,0.18550603]
[1722211224566,0.02109315,68418.0,68417.0,0.19350603]
[1722211225175,0.02109315,68418.0,68417.0,0.16619237]
[1722211226854,0.07651714,68418.0,68417.0,0.16619237]
[1722211227054,0.07651714,68418.0,68417.0,0.16729237]
[1722211227715,0.07651016,68418.0,68417.0,0.16729237]
[1722211229419,0.22454605,68418.0,68417.0,0.16729237]
[1722211229662,0.07651016,68418.0,68417.0,0.19432583]
[1722211230611,0.07651016,68418.0,68417.0,0.77897583]
[1722211230612,0.02108698,68418.0,68417.0,0.77897583]
[1722211230973,0.00084,68419.0,68418.0,0.58464]
[1722211231175,0.00084,68419.0,68418.0,0.87359957]
[1722211231380,0.00084,68419.0,68418.0,0.88308355]
[1722211232109,0.00084,68419.0,68418.0,0.27111198]
[1722211232322,0.02220485,68419.0,68418.0,0.27111198]
[1722211232538,0.02220485,68419.0,68418.0,0.13241198]
[1722211232539,0.0564624,68419.0,68418.0,0.13241198]
[1722211232666,0.07782725,68419.0,68418.0,0.37026798]
[1722211233575,0.07782725,68419.0,68418.0,0.60412398]
[1722211233984,0.00084,68419.0,68418.0,0.60412398]
[1722211234186,0.07802497,68419.0,68418.0,0.60412398]
[1722211234767,0.07802497,68419.0,68418.0,0.37026798]
[1722211236827,0.07802497,68419.0,68418.0,0.74782398]
[1722211237030,0.02227326,68419.0,68418.0,0.74782398]
[1722211237259,0.00084,68419.0,68418.0,0.74782398]
[1722211237455,0.02232006,68419.0,68418.0,0.74782398]
[1722211238552,0.02232006,68419.0,68418.0,0.98167998]
[1722211238755,0.15381237,68419.0,68418.0,1.08843278]
[1722211240542,0.00084,68419.0,68418.0,1.08843278]
[1722211240764,0.13232634,68419.0,68418.0,0.26993678]
[1722211240976,0.13232634,68419.0,68418.0,0.16318398]
[1722211241144,0.15358256,68419.0,68418.0,0.16318398]
[1722211241991,0.02209621,68419.0,68418.0,0.16318398]
[1722211246956,0.02188008,68419.0,68418.0,0.15918398]
[1722211247151,0.02189213,68419.0,68418.0,0.15918398]
[1722211247378,0.02189213,68419.0,68418.0,0.16318398]
[1722211247790,0.02189213,68419.0,68418.0,0.15718398]
[1722211248303,0.02189213,68419.0,68418.0,0.27948718]
[1722211248516,0.02189213,68419.0,68418.0,0.19148718]
[1722211248673,0.02189213,68419.0,68418.0,0.16718398]
[1722211248887,0.02289213,68419.0,68418.0,0.17818398]
[1722211250028,0.00184,68419.0,68418.0,0.17818398]
[1722211250169,0.02265333,68419.0,68418.0,0.17818398]
[1722211250582,0.02265283,68419.0,68418.0,0.17818398]
[1722211250990,0.02265283,68419.0,68418.0,0.03448398]
[1722211251590,0.00184,68419.0,68418.0,0.03448398]
[1722211252324,0.07783516,68419.0,68418.0,0.03448398]
[1722211252740,0.07823634,68419.0,68418.0,0.03448398]
[1722211253352,0.02286983,68419.0,68418.0,0.03448398]
[1722211254544,0.07806022,68419.0,68418.0,0.03448398]
[1722211256637,0.02259608,68419.0,68418.0,0.20350958]
[1722211257172,0.13220588,68419.0,68418.0,0.20350958]
[1722211257378,0.08835805,68419.0,68418.0,0.20350958]
[1722211257573,0.022375,68419.0,68418.0,0.20350958]
[1722211257816,0.10905763,68419.0,68418.0,0.19250958]
[1722211257975,0.10905763,68419.0,68418.0,0.21550958]
[1722211258177,0.021375,68419.0,68418.0,0.22950958]
[1722211258693,0.021375,68419.0,68418.0,0.32950958]
[1722211259100,0.08713105,68419.0,68418.0,0.32950958]
[1722211259300,0.00084,68419.0,68418.0,0.32950958]
[1722211260100,0.06658872,68419.0,68418.0,0.32950958]
[1722211260334,0.06659244,68419.0,68418.0,0.32950958]
[1722211261113,0.00084,68419.0,68418.0,0.32950958]
[1722211262431,0.04466903,68419.0,68418.0,0.32950958]
[1722211262817,0.00084,68419.0,68418.0,0.32950958]
[1722211263391,0.04466774,68419.0,68418.0,0.32950958]
[1722211263726,0.04466774,68419.0,68418.0,0.33848889]
[1722211265239,0.00084,68419.0,68418.0,0.33848889]
[1722211265471,0.06658691,68419.0,68418.0,0.33848889]
[1722211265679,0.00084,68419.0,68418.0,0.33848889]
[1722211265879,0.04466836,68419.0,68418.0,0.33848889]
[1722211267431,0.06658691,68419.0,68418.0,0.33848889]
[1722211267858,0.00084,68419.0,68418.0,0.33848889]
[1722211268258,0.06658691,68419.0,68418.0,0.33848889]
[1722211268467,0.06658444,68419.0,68418.0,0.33848889]
[1722211268617,0.00084,68419.0,68418.0,0.33848889]
[1722211268821,0.06658444,68419.0,68418.0,0.33848889]
[1722211269194,0.00084,68419.0,68418.0,0.33848889]
[1722211269824,0.06658448,68419.0,68418.0,0.33848889]
[1722211271656,0.06658314,68419.0,68418.0,0.33848889]
[1722211272063,0.06658279,68419.0,68418.0,0.33848889]
[1722211272305,0.00084,68419.0,68418.0,0.33848889]
[1722211272693,0.06658279,68419.0,68418.0,0.33848889]
[1722211272877,0.00084,68419.0,68418.0,0.33848889]
[1722211277463,0.00084,68419.0,68418.0,0.31206329]
[1722211277629,0.10884354,68419.0,68418.0,0.31206329]
[1722211277794,0.021185,68419.0,68418.0,0.31206329]
[1722211278198,0.02134231,68419.0,68418.0,0.31206329]
[1722211279259,0.13092486,68419.0,68418.0,0.31206329]
[1722211280400,0.13092486,68419.0,68418.0,0.35194682]
[1722211281352,0.11044309,68419.0,68418.0,0.35194682]
[1722211281501,0.131462,68419.0,68418.0,0.35194682]
[1722211281709,0.02185891,68419.0,68418.0,0.35194682]
[1722211281923,0.1314645,68419.0,68418.0,0.35194682]
[1722211282131,0.10954134,68419.0,68418.0,0.35194682]
[1722211283321,0.02185891,68419.0,68418.0,0.35194682]
[1722211283896,0.02185891,68419.0,68418.0,0.23366329]
[1722211284096,0.02185891,68419.0,68418.0,0.03748398]
[1722211284097,0.16345891,68419.0,68418.0,0.03748398]
[1722211284313,0.21846556,68419.0,68418.0,0.03748398]
[1722211284508,0.2681056,68419.0,68418.0,0.028]
[1722211285085,0.2681056,68419.0,68418.0,0.014]
[1722211285289,0.2681056,68419.0,68418.0,0.028]
[1722211285491,0.36610202,68419.0,68418.0,0.028]
[1722211285694,0.36610202,68419.0,68418.0,0.014]
[1722211285875,0.36610202,68419.0,68418.0,0.03716233]
[1722211286076,0.16309465,68419.0,68418.0,0.03716233]
[1722211286298,0.16309465,68419.0,68418.0,0.11955576]
[1722211286500,0.02149465,68419.0,68418.0,0.11955576]
[1722211286701,0.02149465,68419.0,68418.0,0.13355576]
[1722211286900,0.15302721,68419.0,68418.0,0.13355576]
[1722211287234,0.15302721,68419.0,68418.0,0.02355576]
[1722211287421,0.15302721,68419.0,68418.0,0.03755576]
[1722211287744,0.15302721,68419.0,68418.0,0.03555576]
[1722211287745,0.13237538,68419.0,68418.0,0.03555576]
[1722211287900,0.1617384,68419.0,68418.0,0.02355576]
[1722211288234,0.1617384,68419.0,68418.0,0.05155576]
[1722211288657,0.16173998,68419.0,68418.0,0.03916233]
[1722211288861,0.03020302,68419.0,68418.0,0.03916233]
[1722211289236,0.10840302,68419.0,68418.0,0.03916233]
[1722211289441,0.17180856,68419.0,68418.0,0.03916233]
[1722211290199,0.23350856,68419.0,68418.0,0.028]
[1722211290400,0.38148586,68419.0,68418.0,0.028]
[1722211290842,0.28872371,68419.0,68418.0,0.028]
[1722211291049,0.38196785,68419.0,68418.0,0.028]
[1722211291212,0.14074,68419.0,68418.0,0.028]
[1722211291407,0.35234479,68419.0,68418.0,0.028]
[1722211291612,0.23405874,68419.0,68418.0,0.028]
[1722211292055,0.38204132,68419.0,68418.0,0.028]
[1722211292731,0.23405874,68419.0,68418.0,0.028]
[1722211293140,0.38204132,68419.0,68418.0,0.028]
[1722211293372,0.23405874,68419.0,68418.0,0.028]
[1722211293533,0.38204132,68419.0,68418.0,0.028]
[1722211293882,0.14074,68419.0,68418.0,0.028]
[1722211294278,0.3820823,68419.0,68418.0,0.028]
[1722211294896,0.23412895,68419.0,68418.0,0.028]
[1722211295275,0.38207214,68419.0,68418.0,0.028]
[1722211295681,0.23412895,68419.0,68418.0,0.028]
[1722211296910,0.33412895,68419.0,68418.0,0.028]
[1722211297127,0.38412895,68419.0,68418.0,0.028]
[1722211297320,0.38444454,68419.0,68418.0,0.028]
[1722211299213,0.38444454,68419.0,68418.0,0.014]
[1722211299413,0.38444454,68419.0,68418.0,0.018]
[1722211299831,0.38444454,68419.0,68418.0,0.004]
[1722211299986,0.38444454,68419.0,68418.0,0.012]
[1722211300186,0.29074,68419.0,68418.0,0.012]
[1722211300431,0.38397269,68419.0,68418.0,0.012]
[1722211300710,0.29074,68419.0,68418.0,0.012]
[1722211300921,0.38397269,68419.0,68418.0,0.012]
[1722211301579,0.59952871,68419.0,68418.0,0.012]
[1722211302026,0.38397269,68419.0,68418.0,0.012]
[1722211302234,0.59942073,68419.0,68418.0,0.012]
[1722211302446,0.4668476,68419.0,68418.0,0.012]
[1722211302653,0.5668476,68419.0,68418.0,0.012]
[1722211302877,0.5674979,68419.0,68418.0,0.012]
[1722211303341,0.5674979,68419.0,68395.0,0.45077872]
[1722211303342,0.2878,68401.0,68391.0,0.45077872]
[1722211303561,0.2878,68401.0,68370.0,0.063824]
[1722211303562,0.05,68374.0,68370.0,0.000924]
[1722211303767,0.05,68374.0,68373.0,0.46208213]
[1722211303768,0.1610736,68374.0,68373.0,0.46208213]
[1722211303972,0.1610736,68374.0,68373.0,0.01130341]
[1722211304194,0.05,68373.0,68370.0,0.000924]
[1722211304392,0.08744602,68371.0,68370.0,0.000924]
[1722211304570,0.33800233,68371.0,68370.0,0.000924]
[1722211304779,0.38018985,68371.0,68370.0,0.000924]
[1722211305206,0.5112033,68371.0,68370.0,0.000924]
[1722211305407,0.38018985,68371.0,68370.0,0.000924]
[1722211305568,0.33018985,68371.0,68370.0,0.000924]
[1722211305974,0.46120412,68371.0,68370.0,0.000924]
[1722211306282,0.3147736,68371.0,68370.0,0.000924]
[1722211306522,0.3147736,68371.0,68370.0,0.011924]
[1722211306523,0.2854,68371.0,68370.0,0.011924]
[1722211306698,0.31808151,68371.0,68370.0,0.011924]
[1722211307113,0.3845791,68371.0,68370.0,0.011924]
[1722211307313,0.3845791,68371.0,68370.0,0.025924]
[1722211307314,0.39158687,68371.0,68370.0,0.025924]
[1722211307539,0.49473606,68371.0,68370.0,0.025924]
[1722211307717,0.38576949,68371.0,68370.0,0.025924]
[1722211307916,0.49473779,68371.0,68370.0,0.025924]
[1722211308270,0.36262864,68371.0,68370.0,0.025924]
[1722211308435,0.31908151,68371.0,68370.0,0.025924]
[1722211308653,0.40560109,68371.0,68370.0,0.025924]
[1722211308855,0.26262825,68371.0,68370.0,0.025924]
[1722211309064,0.36262825,68371.0,68370.0,0.025924]
[1722211309253,0.31908151,68371.0,68370.0,0.025924]
[1722211309416,0.21808151,68371.0,68370.0,0.014924]
[1722211309618,0.1844,68371.0,68370.0,0.000924]
[1722211309842,0.21849159,68371.0,68370.0,0.016924]
[1722211310068,0.35134075,68371.0,68370.0,0.016924]
[1722211310266,0.25134171,68371.0,68370.0,0.016924]
[1722211310487,0.31949255,68371.0,68370.0,0.016924]
[1722211312784,0.2864,68371.0,68370.0,0.016924]
[1722211313112,0.31957592,68371.0,68370.0,0.016924]
[1722211314052,0.1864,68371.0,68370.0,0.016924]
[1722211314249,0.2864,68371.0,68370.0,0.016924]
[1722211314453,0.303324,68371.0,68370.0,0.016924]
[1722211314890,0.203324,68371.0,68370.0,0.016924]
[1722211315084,0.303324,68371.0,68370.0,0.016924]
[1722211315603,0.33628811,68371.0,68370.0,0.016924]
[1722211315876,0.303324,68371.0,68370.0,0.016924]
[1722211316289,0.33629015,68371.0,68370.0,0.016924]
[1722211318002,0.33596235,68371.0,68370.0,0.016924]
[1722211319422,0.303324,68371.0,68370.0,0.016924]
[1722211319630,0.33604623,68371.0,68370.0,0.016924]
[1722211320573,0.36965085,68371.0,68370.0,0.016924]
[1722211320975,0.33604623,68371.0,68370.0,0.016924]
[1722211321180,0.23604623,68371.0,68370.0,0.016924]
[1722211321376,0.303324,68371.0,68370.0,0.016924]
[1722211321948,0.33595248,68371.0,68370.0,0.016924]
[1722211322294,0.303324,68371.0,68370.0,0.016924]
[1722211322494,0.203324,68371.0,68370.0,0.016924]
[1722211322896,0.149624,68371.0,68370.0,0.016924]
[1722211323309,0.1824196,68371.0,68370.0,0.016924]
[1722211323492,0.1017196,68371.0,68370.0,0.016924]
[1722211323708,0.068924,68371.0,68370.0,0.016924]
[1722211323906,0.10178699,68371.0,68370.0,0.016924]
[1722211324132,0.068924,68371.0,68370.0,0.016924]
[1722211324332,0.10178569,68371.0,68370.0,0.016924]
[1722211324554,0.068924,68371.0,68370.0,0.016924]
[1722211327773,0.10128288,68371.0,68370.0,0.016924]
[1722211328023,0.068924,68371.0,68370.0,0.016924]
[1722211328226,0.10128336,68371.0,68370.0,0.016924]
[1722211330435,0.05128336,68371.0,68370.0,0.016924]
[1722211330661,0.10128336,68371.0,68370.0,0.016924]
[1722211331248,0.05123639,68371.0,68370.0,0.016924]
[1722211331415,0.10123639,68371.0,68370.0,0.016924]
[1722211331635,0.10123639,68371.0,68370.0,0.159924]
[1722211331794,0.10123319,68371.0,68370.0,0.159924]
[1722211332120,0.10123319,68371.0,68370.0,0.17136882]
[1722211332322,0.05123319,68371.0,68370.0,0.17136882]
[1722211332527,0.10123319,68371.0,68370.0,0.17136882]
[1722211332680,0.10123319,68371.0,68370.0,0.09406882]
[1722211333304,0.1672832,68371.0,68370.0,0.09406882]
[1722211333706,0.16700312,68371.0,68370.0,0.09406882]
[1722211334470,0.068924,68371.0,68370.0,0.09406882]
[1722211334619,0.08488208,68371.0,68370.0,0.09406882]
[1722211334821,0.11700202,68371.0,68370.0,0.09406882]
[1722211335453,0.11700202,68371.0,68370.0,0.1113857]
[1722211336062,0.11700202,68371.0,68370.0,0.09406882]
[1722211337712,0.11685802,68371.0,68370.0,0.09406882]
[1722211337915,0.11685802,68371.0,68370.0,0.02836882]
[1722211338988,0.11685802,68371.0,68370.0,0.14537882]
[1722211339325,0.11685802,68371.0,68370.0,0.02836882]
[1722211339917,0.11685802,68371.0,68370.0,0.37939882]
[1722211340317,0.03404617,68371.0,68370.0,1.0607225]
[1722211340495,0.03404617,68371.0,68370.0,0.8267025]
[1722211340659,0.03404617,68371.0,68370.0,0.75091882]
[1722211340922,0.03426209,68371.0,68370.0,0.75091882]
[1722211341323,0.001,68371.0,68370.0,0.74191882]
[1722211341676,0.03208975,68378.0,68374.0,0.234006]
[1722211341876,0.03308932,68377.0,68374.0,0.234006]
[1722211342141,0.03308932,68377.0,68376.0,0.117]
[1722211342142,0.00099999,68377.0,68376.0,0.117]
[1722211342466,0.03208884,68377.0,68375.0,0.01141681]
[1722211342695,0.03208884,68377.0,68374.0,0.350008]
[1722211342696,0.03364304,68376.0,68374.0,0.233006]
[1722211342897,0.03208884,68375.0,68374.0,0.370009]
[1722211343127,0.03208884,68375.0,68374.0,0.358009]
[1722211343244,0.002,68378.0,68375.0,0.117]
[1722211343448,0.03360903,68377.0,68375.0,0.117]
[1722211343649,0.03205483,68376.0,68375.0,0.117]
[1722211343859,0.03205483,68376.0,68370.0,0.372444]
[1722211343860,0.03205483,68376.0,68370.0,0.138424]
[1722211344054,0.117004,68374.0,68370.0,0.138424]
[1722211344298,0.03208159,68373.0,68370.0,0.138424]
[1722211344501,0.03208159,68373.0,68370.0,0.062524]
[1722211344865,0.03208159,68373.0,68370.0,0.179534]
[1722211345063,0.03208159,68373.0,68370.0,0.075524]
[1722211345262,0.03208159,68372.0,68370.0,0.179533]
[1722211345488,0.03208159,68371.0,68370.0,0.179533]
[1722211345689,0.03208159,68373.0,68370.0,0.193533]
[1722211345895,0.03208159,68372.0,68370.0,0.193533]
[1722211346240,0.03208159,68371.0,68370.0,0.206533]
[1722211346440,0.03208159,68371.0,68370.0,0.192533]
[1722211346647,0.03208159,68373.0,68370.0,0.192533]
[1722211346965,0.03208159,68373.0,68371.0,0.117008]
[1722211347078,0.03208159,68372.0,68371.0,0.117008]
[1722211347479,0.03208159,68372.0,68370.0,0.076524]
[1722211347480,0.04378683,68372.0,68370.0,0.076524]
[1722211347735,0.03208159,68371.0,68370.0,0.193534]
[1722211348307,0.09780881,68371.0,68370.0,0.193534]
[1722211348528,0.09780881,68371.0,68370.0,0.206534]
[1722211349141,0.09780881,68371.0,68370.0,0.193534]
[1722211349347,0.14154866,68371.0,68370.0,0.207534]
[1722211350332,0.03208159,68371.0,68370.0,0.207534]
[1722211350540,0.117003,68374.0,68370.0,0.207534]
[1722211350541,0.1185572,68374.0,68370.0,0.207534]
[1722211350741,0.0323624,68373.0,68370.0,0.207534]
[1722211351331,0.03236237,68372.0,68370.0,0.207534]
[1722211351489,0.03236237,68371.0,68370.0,0.062524]
[1722211351811,0.03236237,68371.0,68370.0,0.074524]
[1722211352013,0.03236237,68372.0,68370.0,0.088524]
[1722211352211,0.09858633,68372.0,68370.0,0.074524]
[1722211352568,0.09858633,68372.0,68370.0,0.088524]
[1722211352888,0.09858633,68372.0,68370.0,0.076524]
[1722211353092,0.09858633,68372.0,68370.0,0.090524]
[1722211353472,0.09858633,68372.0,68371.0,0.117008]
[1722211353678,0.09858633,68372.0,68371.0,0.6607107]
[1722211353974,0.19953699,68379.0,68378.0,0.116996]
[1722211353975,0.0015542,68379.0,68378.0,0.116996]
[1722211354153,0.10084242,68380.0,68373.0,0.0606]
[1722211354361,0.0015542,68380.0,68379.0,0.350983]
[1722211354509,0.10083823,68380.0,68379.0,0.350983]
[1722211354973,0.09928403,68380.0,68376.0,0.234]
[1722211355188,0.13151027,68378.0,68377.0,0.116997]
[1722211355347,0.23078297,68378.0,68377.0,0.116997]
[1722211356198,0.09928403,68378.0,68377.0,0.116997]
[1722211356360,0.10083823,68380.0,68377.0,0.116997]
[1722211356557,0.09928403,68379.0,68377.0,0.128997]
[1722211356765,0.10083823,68378.0,68377.0,0.128997]
[1722211357035,0.0015542,68378.0,68377.0,0.128997]
[1722211357238,0.116991,68381.0,68377.0,0.128997]
[1722211357239,0.10259063,68380.0,68377.0,0.128997]
[1722211357440,0.10103643,68379.0,68377.0,0.128997]
[1722211357640,0.10103643,68379.0,68377.0,0.142997]
[1722211357881,0.116991,68381.0,68377.0,0.130997]
[1722211357882,0.10259063,68378.0,68377.0,0.130997]
[1722211358163,0.10259063,68378.0,68377.0,0.140997]
[1722211358372,0.10103643,68378.0,68377.0,0.126997]
[1722211358574,0.10103643,68378.0,68377.0,0.116997]
[1722211358717,0.10103643,68378.0,68377.0,0.130997]
[1722211358917,0.10103643,68378.0,68377.0,0.127997]
[1722211359241,0.10103643,68378.0,68377.0,0.141997]
[1722211359443,0.10103643,68378.0,68377.0,0.598989]
[1722211359640,0.10103643,68378.0,68377.0,0.376993]
[1722211360390,0.0015542,68381.0,68378.0,0.233993]
[1722211360533,0.116986,68384.0,68379.0,0.116993]
[1722211360534,0.10006784,68380.0,68379.0,0.116993]
[1722211361249,0.09937619,68380.0,68379.0,0.116993]
[1722211361888,0.09937619,68380.0,68379.0,0.129993]
[1722211362292,0.09937619,68380.0,68379.0,0.139993]
[1722211362497,0.09937619,68381.0,68379.0,0.139993]
[1722211362700,0.0015542,68380.0,68379.0,0.139993]
[1722211362879,0.10093039,68380.0,68379.0,0.139993]
[1722211363264,0.09937619,68380.0,68379.0,0.139993]
[1722211363703,0.03278904,68380.0,68379.0,0.139993]
[1722211363907,0.09937619,68380.0,68379.0,0.139993]
[1722211364185,0.09937619,68380.0,68379.0,0.013]
[1722211364384,0.09937619,68380.0,68379.0,0.022]
[1722211364775,0.06658715,68380.0,68379.0,0.022]
[1722211364978,0.10093039,68380.0,68379.0,0.013]
[1722211365307,0.09937619,68380.0,68379.0,0.023]
[1722211366931,0.21600413,68380.0,68379.0,0.023]
[1722211367133,0.2160037,68380.0,68379.0,0.023]
[1722211367682,0.2175579,68380.0,68379.0,0.023]
[1722211368227,0.36549853,68380.0,68379.0,0.023]
[1722211369092,0.36549853,68380.0,68379.0,0.03347506]
[1722211369766,0.24850553,68380.0,68379.0,0.03347506]
[1722211369932,0.24695133,68380.0,68379.0,0.03347506]
[1722211370139,0.0015542,68380.0,68379.0,0.03347506]
[1722211370397,0.10089985,68380.0,68379.0,0.03347506]
[1722211370773,0.10089961,68380.0,68379.0,0.03347506]
[1722211371940,0.09934541,68380.0,68379.0,0.03347506]
[1722211372121,0.09934541,68380.0,68379.0,0.15046906]
[1722211372259,0.09934541,68380.0,68379.0,0.03347506]
[1722211372684,0.1185442,68382.0,68379.0,0.17097506]
[1722211372885,0.09942241,68381.0,68379.0,0.40496206]
[1722211373084,0.0015542,68380.0,68379.0,0.26807117]
[1722211373291,0.0015542,68380.0,68379.0,0.17097506]
[1722211373653,0.03307123,68380.0,68379.0,0.16097506]
[1722211373772,0.1185442,68382.0,68379.0,0.1549676]
[1722211373773,0.09992832,68381.0,68379.0,0.1549676]
[1722211373974,0.10148252,68380.0,68379.0,0.1659676]
[1722211374285,0.10148252,68380.0,68379.0,0.1479676]
[1722211374469,0.10148252,68380.0,68379.0,0.1609676]
[1722211374824,0.24796432,68380.0,68379.0,0.6059506]
[1722211375369,0.24796432,68380.0,68379.0,0.8399396]
[1722211375732,0.10148252,68380.0,68379.0,0.6059506]
[1722211376690,0.10069466,68380.0,68379.0,0.6059506]
[1722211376891,0.09914046,68380.0,68379.0,0.6059506]
[1722211377093,0.10069466,68380.0,68379.0,0.6059506]
[1722211378046,0.10069466,68380.0,68379.0,1.0739286]
[1722211378191,0.09909522,68380.0,68379.0,1.0739286]
[1722211378397,0.09909522,68380.0,68379.0,1.0719286]
[1722211378625,0.05863,68387.0,68386.0,0.177083]
[1722211378879,0.14805302,68389.0,68388.0,0.116979]
[1722211379009,0.09941785,68389.0,68388.0,0.4921329]
[1722211379215,0.09941785,68389.0,68388.0,0.73652852]
[1722211380127,0.058625,68392.0,68391.0,0.350922]
[1722211380372,0.15816995,68392.0,68391.0,0.350922]
[1722211380616,0.15816995,68392.0,68391.0,0.36135081]
[1722211380617,0.1581701,68392.0,68391.0,0.36135081]
[1722211381114,0.1581701,68392.0,68391.0,0.12740281]
[1722211381350,0.1581701,68392.0,68391.0,0.37535081]
[1722211382012,0.1581701,68392.0,68391.0,0.38935081]
[1722211382215,0.058625,68392.0,68391.0,0.38935081]
[1722211382417,0.12509977,68392.0,68391.0,0.38935081]
[1722211382658,0.157776,68392.0,68391.0,0.38935081]
[1722211383130,0.157776,68392.0,68391.0,0.15540281]
[1722211383556,0.157776,68392.0,68391.0,0.38935081]
[1722211384123,0.305799,68392.0,68391.0,0.38935081]
[1722211384327,0.157776,68392.0,68391.0,0.38935081]
[1722211384781,0.30580006,68392.0,68391.0,0.38935081]
[1722211385208,0.157776,68392.0,68391.0,0.38935081]
[1722211385426,0.058625,68392.0,68391.0,0.38935081]
[1722211385627,0.23925604,68392.0,68391.0,0.38935081]
[1722211385832,0.30566891,68392.0,68391.0,0.38935081]
[1722211386113,0.24704391,68392.0,68391.0,0.77269881]
[1722211386305,0.09902513,68392.0,68391.0,0.77269881]
[1722211386457,0.0993181,68393.0,68392.0,0.46789]
[1722211386656,0.20664178,68395.0,68393.0,0.0775]
[1722211386875,0.058623,68395.0,68394.0,0.44531758]
[1722211387082,0.14801878,68397.0,68395.0,0.233935]
[1722211387301,0.15758845,68396.0,68395.0,0.350902]
[1722211387515,0.15758845,68396.0,68395.0,0.901196]
[1722211387718,0.03258292,68396.0,68395.0,0.961296]
[1722211387916,0.14885878,68400.0,68398.0,0.116962]
[1722211387917,0.058619,68399.0,68398.0,0.116962]
[1722211388129,0.15791137,68399.0,68398.0,0.66881]
[1722211388716,0.00084,68400.0,68399.0,0.350881]
[1722211388918,0.06737889,68400.0,68399.0,0.350881]
[1722211389119,0.00084,68400.0,68399.0,0.350881]
[1722211389551,0.16501463,68400.0,68399.0,0.350881]
[1722211389909,0.16001463,68400.0,68399.0,0.4251728]
[1722211390596,0.02858896,68400.0,68399.0,0.8930148]
[1722211390778,0.02858896,68400.0,68399.0,0.731502]
[1722211390909,0.13142567,68402.0,68401.0,0.350871]
[1722211391138,0.13142567,68402.0,68401.0,0.434871]
[1722211391519,0.13142567,68402.0,68401.0,0.5182202]
[1722211391698,0.13142567,68403.0,68402.0,0.350866]
[1722211391935,0.13142567,68403.0,68402.0,0.584777]
[1722211392112,0.058615,68405.0,68404.0,0.350856]
[1722211392489,0.12437835,68405.0,68404.0,0.350856]
[1722211392667,0.058615,68405.0,68404.0,0.44183762]
[1722211392855,0.058615,68405.0,68404.0,0.50203762]
[1722211393245,0.14778197,68409.0,68405.0,0.116949]
[1722211393424,0.21694,68411.0,68405.0,0.116949]
[1722211393425,0.06575313,68408.0,68405.0,0.116949]
[1722211393647,0.06575313,68407.0,68406.0,0.116948]
[1722211394266,0.06575313,68407.0,68406.0,0.20777738]
[1722211394682,0.06571311,68407.0,68406.0,0.20777738]
[1722211394918,0.06571311,68407.0,68404.0,0.0602]
[1722211395147,0.116947,68407.0,68403.0,0.116953]
[1722211395351,0.19419485,68405.0,68403.0,0.116953]